[Event "RUS-ch Rapid 2021"]
[Site "Sochi"]
[Date "2021.10.13"]
[Round "9.17"]
[White "Khegay, Dmitriy"]
[Black "Gochelashvili, David"]
[Result "0-1"]
[ECO "A48"]
[WhiteElo "2521"]
[BlackElo "2400"]
[Annotator "ChessBase"]
[PlyCount "92"]
[EventDate "2021.10.12"]
[EventType "swiss"]
[EventCountry "RUS"]
[SourceTitle "playchess.com"]
[Source "ChessBase"]
[SourceQuality "1"]
[TimeControl "900+10"]

1. d4 {[%emt 0:00:00]} Nf6 {[%emt 0:00:00]} 2. Bf4 {[%emt 0:00:00]} d6 {
[%emt 0:00:06]} 3. e3 {[%emt 0:00:06]} g6 {[%emt 0:00:11]} 4. Nf3 {[%emt 0:00:
00]} Nh5 {[%emt 0:00:01]} 5. Bg3 {[%emt 0:01:01]} Nxg3 {[%emt 0:00:28]} 6. hxg3
{[%emt 0:00:05]} Bg7 {[%emt 0:00:00]} 7. Be2 {[%emt 0:00:04]} Nd7 {[%emt 0:00:
45]} 8. Nc3 {[%emt 0:00:17]} c6 {[%emt 0:00:33]} 9. Qd2 {[%emt 0:00:08]} b5 {
[%emt 0:01:25]} 10. a4 {[%emt 0:00:38]} b4 {[%emt 0:00:21]} 11. Nd1 {[%emt 0:
00:04]} Rb8 {[%emt 0:01:29]} 12. e4 {[%emt 0:00:05]} e5 {[%emt 0:04:33]} 13.
dxe5 {[%emt 0:00:11]} dxe5 {[%emt 0:00:04]} 14. Ne3 {[%emt 0:00:08]} Qe7 {
[%emt 0:00:03]} 15. Nc4 {[%emt 0:00:38]} O-O {[%emt 0:00:00]} 16. Qd6 {[%emt 0:
00:10]} Qxd6 {[%emt 0:00:43]} 17. Nxd6 {[%emt 0:00:00]} Nc5 {[%emt 0:00:02]}
18. Bc4 {[%emt 0:00:42]} b3 {[%emt 0:01:52]} 19. Ng5 {[%emt 0:01:08]} Be6 {
[%emt 0:00:05]} 20. O-O-O {[%emt 0:02:21]} Bxc4 {[%emt 0:01:05]} 21. Nxc4 {
[%emt 0:00:01]} h6 {[%emt 0:01:13]} 22. Nh3 {[%emt 0:00:08]} Rb4 {[%emt 0:00:
12]} 23. Nd2 {[%emt 0:00:21]} bxc2 {[%emt 0:01:06]} 24. Kxc2 {[%emt 0:00:02]}
Rfb8 {[%emt 0:00:00]} 25. Rb1 {[%emt 0:00:31]} Nxe4 {[%emt 0:00:18]} 26. Rhd1 {
[%emt 0:00:36]} Nxd2 {[%emt 0:00:16]} 27. Rxd2 {[%emt 0:00:06]} Rc4+ {[%emt 0:
00:01]} 28. Kd1 {[%emt 0:00:10]} Rxa4 {[%emt 0:00:03]} 29. Ng1 {[%emt 0:00:14]}
e4 {[%emt 0:00:01]} 30. Ne2 {[%emt 0:00:10]} Rab4 {[%emt 0:00:09]} 31. Rd7 {
[%emt 0:00:57]} a5 {[%emt 0:00:29]} 32. Rc7 {[%emt 0:00:32]} Bxb2 {[%emt 0:00:
25]} 33. Rxc6 {[%emt 0:00:08]} a4 {[%emt 0:00:00]} 34. Ra6 {[%emt 0:00:13]} a3
{[%emt 0:00:06]} 35. Nf4 {[%emt 0:00:07]} R4b6 {[%emt 0:01:16]} 36. Ra4 {
[%emt 0:00:11]} Rb4 {[%emt 0:00:11]} 37. Ra6 {[%emt 0:00:00]} Rd8+ {[%emt 0:00:
10]} 38. Ke2 {[%emt 0:00:16]} Rdd4 {[%emt 0:00:00]} 39. Rh1 {[%emt 0:00:28]}
Ra4 {[%emt 0:00:09]} 40. Rb6 {[%emt 0:00:07]} Rdb4 {[%emt 0:00:20]} 41. Nd5 {
[%emt 0:00:36]} Rxb6 {[%emt 0:00:19]} 42. Nxb6 {[%emt 0:00:00]} Rb4 {[%emt 0:
00:12]} 43. Nd5 {[%emt 0:00:00]} Rb5 {[%emt 0:00:53]} 44. Ne3 {[%emt 0:00:01]}
Bg7 {[%emt 0:00:27]} 45. Nc2 {[%emt 0:00:09]} Rb2 {[%emt 0:00:05]} 46. Kd2 {
[%emt 0:00:04]} Rxc2+ {[%emt 0:00:00]} 0-1

[Event "RUS-ch Rapid 2021"]
[Site "Sochi"]
[Date "2021.10.13"]
[Round "9.18"]
[White "Oganian, Miran"]
[Black "Faizrakhmanov, Ramil"]
[Result "0-1"]
[ECO "E04"]
[WhiteElo "2441"]
[BlackElo "2483"]
[Annotator "ChessBase"]
[PlyCount "94"]
[EventDate "2021.10.12"]
[EventType "swiss"]
[EventCountry "RUS"]
[SourceTitle "playchess.com"]
[Source "ChessBase"]
[SourceQuality "1"]
[TimeControl "900+10"]

1. d4 {[%emt 0:00:08]} Nf6 {[%emt 0:00:00]} 2. c4 {[%emt 0:00:00]} e6 {[%emt 0:
00:00]} 3. g3 {[%emt 0:00:00]} d5 {[%emt 0:00:08]} 4. Nf3 {[%emt 0:00:00]} dxc4
{[%emt 0:00:00]} 5. Bg2 {[%emt 0:00:02]} Bb4+ {[%emt 0:00:08]} 6. Bd2 {[%emt 0:
00:11]} a5 {[%emt 0:00:00]} 7. O-O {[%emt 0:00:24]} O-O {[%emt 0:00:00]} 8. Bg5
{[%emt 0:00:27]} h6 {[%emt 0:00:22]} 9. Bxf6 {[%emt 0:00:02]} Qxf6 {[%emt 0:00:
05]} 10. Qc2 {[%emt 0:00:00]} Nd7 {[%emt 0:00:28]} 11. Qxc4 {[%emt 0:00:09]} e5
{[%emt 0:00:08]} 12. Qxc7 {[%emt 0:00:31]} exd4 {[%emt 0:00:07]} 13. Qf4 {
[%emt 0:00:06]} Qxf4 {[%emt 0:02:21]} 14. gxf4 {[%emt 0:00:00]} d3 {[%emt 0:00:
40]} 15. exd3 {[%emt 0:05:42]} Nc5 {[%emt 0:00:59]} 16. Ne5 {[%emt 0:00:59]}
Rd8 {[%emt 0:00:44]} 17. Nc3 {[%emt 0:01:16]} Bxc3 {[%emt 0:00:30]} 18. bxc3 {
[%emt 0:00:04]} f6 {[%emt 0:00:13]} 19. d4 {[%emt 0:00:32]} Na4 {[%emt 0:00:10]
} 20. Nc4 {[%emt 0:03:30]} Nxc3 {[%emt 0:00:16]} 21. Rfe1 {[%emt 0:00:00]} Ra6
{[%emt 0:00:39]} 22. d5 {[%emt 0:00:21]} b5 {[%emt 0:00:30]} 23. Ne3 {[%emt 0:
00:00]} b4 {[%emt 0:01:46]} 24. a3 {[%emt 0:00:28]} Kf8 {[%emt 0:00:58]} 25.
Bf1 {[%emt 0:03:18]} Rb6 {[%emt 0:02:04]} 26. Nc4 {[%emt 0:00:26]} Rb5 {
[%emt 0:00:14]} 27. axb4 {[%emt 0:00:05]} axb4 {[%emt 0:00:00]} 28. Na5 {
[%emt 0:00:02]} Rbxd5 {[%emt 0:00:39]} 29. Nc6 {[%emt 0:00:00]} b3 {[%emt 0:01:
46]} 30. Nxd8 {[%emt 0:00:05]} b2 {[%emt 0:00:45]} 31. Ra8 {[%emt 0:00:48]}
Rxd8 {[%emt 0:00:07]} 32. Rb8 {[%emt 0:00:08]} b1=Q {[%emt 0:00:16]} 33. Rexb1
{[%emt 0:00:03]} Nxb1 {[%emt 0:00:00]} 34. Rxb1 {[%emt 0:00:23]} Bf5 {[%emt 0:
00:07]} 35. Rc1 {[%emt 0:00:38]} Rd4 {[%emt 0:00:09]} 36. Rc7 {[%emt 0:00:10]}
Rxf4 {[%emt 0:00:20]} 37. Be2 {[%emt 0:00:01]} Rb4 {[%emt 0:00:29]} 38. Kg2 {
[%emt 0:00:12]} Rb3 {[%emt 0:00:27]} 39. h4 {[%emt 0:00:16]} Be4+ {[%emt 0:00:
22]} 40. Kh2 {[%emt 0:00:13]} Rb2 {[%emt 0:00:07]} 41. Bc4 {[%emt 0:00:00]}
Rxf2+ {[%emt 0:00:03]} 42. Kg3 {[%emt 0:00:06]} Rc2 {[%emt 0:00:16]} 43. Rc8+ {
[%emt 0:00:23]} Ke7 {[%emt 0:00:09]} 44. Kf4 {[%emt 0:00:10]} Bd5 {[%emt 0:00:
18]} 45. Ba6 {[%emt 0:00:03]} g5+ {[%emt 0:00:17]} 46. Kg3 {[%emt 0:00:18]}
Rg2+ {[%emt 0:00:04]} 47. Kh3 {[%emt 0:00:02]} g4# {[%emt 0:00:00]} 0-1

[Event "RUS-ch Rapid 2021"]
[Site "Sochi"]
[Date "2021.10.13"]
[Round "9.19"]
[White "Khanin, Semen"]
[Black "Ivanov, Alexander Al."]
[Result "1/2-1/2"]
[ECO "C66"]
[WhiteElo "2521"]
[BlackElo "2400"]
[Annotator "ChessBase"]
[PlyCount "116"]
[EventDate "2021.10.12"]
[EventType "swiss"]
[EventCountry "RUS"]
[SourceTitle "playchess.com"]
[Source "ChessBase"]
[SourceQuality "1"]
[TimeControl "900+10"]

1. d4 {[%emt 0:00:00]} d6 {[%emt 0:00:03]} 2. e4 {[%emt 0:00:08]} Nf6 {[%emt 0:
00:00]} 3. Nc3 {[%emt 0:00:02]} e5 {[%emt 0:00:01]} 4. Nf3 {[%emt 0:00:03]} Nc6
{[%emt 0:00:01]} 5. Bb5 {[%emt 0:00:48]} Bd7 {[%emt 0:00:05]} 6. O-O {[%emt 0:
00:18]} Be7 {[%emt 0:00:13]} 7. Re1 {[%emt 0:00:29]} exd4 {[%emt 0:02:21]} 8.
Nxd4 {[%emt 0:00:08]} Nxd4 {[%emt 0:01:18]} 9. Qxd4 {[%emt 0:00:05]} Bxb5 {
[%emt 0:00:05]} 10. Nxb5 {[%emt 0:00:00]} c6 {[%emt 0:00:05]} 11. Nc3 {[%emt 0:
00:02]} O-O {[%emt 0:00:07]} 12. Bf4 {[%emt 0:00:34]} Nh5 {[%emt 0:00:13]} 13.
Be3 {[%emt 0:00:09]} Qc7 {[%emt 0:01:46]} 14. a4 {[%emt 0:00:22]} a5 {[%emt 0:
00:10]} 15. Rad1 {[%emt 0:00:14]} Rfd8 {[%emt 0:01:57]} 16. Qc4 {[%emt 0:00:02]
} Rdc8 {[%emt 0:00:35]} 17. h3 {[%emt 0:00:51]} Nf6 {[%emt 0:00:39]} 18. f4 {
[%emt 0:00:50]} d5 {[%emt 0:03:45]} 19. exd5 {[%emt 0:00:31]} cxd5 {[%emt 0:00:
00]} 20. Qxc7 {[%emt 0:00:48]} Rxc7 {[%emt 0:00:06]} 21. Bd4 {[%emt 0:00:41]}
Bc5 {[%emt 0:00:10]} 22. g4 {[%emt 0:00:54]} h6 {[%emt 0:00:39]} 23. Kg2 {
[%emt 0:00:07]} Bxd4 {[%emt 0:00:00]} 24. Rxd4 {[%emt 0:00:02]} Rac8 {[%emt 0:
00:28]} 25. g5 {[%emt 0:00:33]} hxg5 {[%emt 0:00:33]} 26. fxg5 {[%emt 0:00:00]}
Ne4 {[%emt 0:00:01]} 27. Nxe4 {[%emt 0:00:41]} dxe4 {[%emt 0:00:01]} 28. c3 {
[%emt 0:00:03]} Rc5 {[%emt 0:00:00]} 29. h4 {[%emt 0:00:03]} b5 {[%emt 0:00:07]
} 30. Rexe4 {[%emt 0:01:11]} bxa4 {[%emt 0:00:01]} 31. Rxa4 {[%emt 0:00:08]}
Rb5 {[%emt 0:00:13]} 32. Re2 {[%emt 0:00:02]} Rcb8 {[%emt 0:00:11]} 33. Kf3 {
[%emt 0:00:23]} Kh7 {[%emt 0:00:05]} 34. Kg4 {[%emt 0:00:32]} Rxb2 {[%emt 0:00:
42]} 35. Rxb2 {[%emt 0:00:00]} Rxb2 {[%emt 0:00:00]} 36. Rxa5 {[%emt 0:00:04]}
Rg2+ {[%emt 0:00:00]} 37. Kf5 {[%emt 0:00:22]} Rf2+ {[%emt 0:00:32]} 38. Ke5 {
[%emt 0:00:04]} Kg6 {[%emt 0:00:03]} 39. Ra8 {[%emt 0:00:23]} Rh2 {[%emt 0:00:
17]} 40. Rh8 {[%emt 0:00:07]} f6+ {[%emt 0:00:01]} 41. gxf6 {[%emt 0:00:14]}
gxf6+ {[%emt 0:00:01]} 42. Kd5 {[%emt 0:01:53]} Kg7 {[%emt 0:00:00]} 43. Re8 {
[%emt 0:00:03]} Rxh4 {[%emt 0:00:07]} 44. c4 {[%emt 0:00:01]} Rh1 {[%emt 0:00:
02]} 45. c5 {[%emt 0:00:06]} Rd1+ {[%emt 0:00:00]} 46. Ke6 {[%emt 0:00:02]}
Re1+ {[%emt 0:00:10]} 47. Kd7 {[%emt 0:00:00]} Rd1+ {[%emt 0:00:04]} 48. Kc7 {
[%emt 0:00:18]} f5 {[%emt 0:00:16]} 49. c6 {[%emt 0:00:00]} Kg6 {[%emt 0:00:18]
} 50. Re6+ {[%emt 0:00:44]} Kg5 {[%emt 0:00:00]} 51. Rd6 {[%emt 0:00:00]} Rc1 {
[%emt 0:00:06]} 52. Kd7 {[%emt 0:00:00]} f4 {[%emt 0:00:04]} 53. c7 {[%emt 0:
00:00]} f3 {[%emt 0:00:53]} 54. c8=Q {[%emt 0:00:55]} Rxc8 {[%emt 0:00:00]} 55.
Kxc8 {[%emt 0:00:03]} f2 {[%emt 0:00:06]} 56. Rd1 {[%emt 0:00:00]} Kf4 {
[%emt 0:00:03]} 57. Rf1 {[%emt 0:00:00]} Ke3 {[%emt 0:00:00]} 58. Rxf2 {
[%emt 0:00:00]} Kxf2 {[%emt 0:00:00]} 1/2-1/2

[Event "RUS-ch Rapid 2021"]
[Site "Sochi"]
[Date "2021.10.13"]
[Round "9.20"]
[White "Ekdyshman, Mikhail"]
[Black "Antipov, Mikhail Al."]
[Result "0-1"]
[ECO "A35"]
[WhiteElo "2315"]
[BlackElo "2619"]
[Annotator "RC"]
[PlyCount "94"]
[EventDate "2021.10.12"]
[EventType "swiss"]
[EventCountry "RUS"]
[SourceTitle "playchess.com"]
[Source "ChessBase"]
[SourceQuality "1"]
[TimeControl "900+10"]

1. c4 {[%emt 0:00:21]} g6 {[%emt 0:00:00]} 2. Nc3 {[%emt 0:00:04]} c5 {[%emt 0:
00:06]} 3. Nf3 {[%emt 0:00:13]} Bg7 {[%emt 0:00:00]} 4. d4 {[%emt 0:00:45]}
cxd4 {[%emt 0:00:01]} 5. Nxd4 {[%emt 0:00:00]} Nc6 {[%emt 0:00:00]} 6. Nc2 {
[%emt 0:00:00]} Bxc3+ {[%emt 0:00:10]} 7. bxc3 {[%emt 0:00:08]} Nf6 {[%emt 0:
00:24]} 8. f3 {[%emt 0:01:24]} Qa5 {[%emt 0:01:17]} 9. e4 {[%emt 0:00:10]} d6 {
[%emt 0:00:00]} 10. Be2 {[%emt 0:00:00]} Qxc3+ {[%emt 0:00:00]} 11. Bd2 {
[%emt 0:00:30]} Qe5 {[%emt 0:00:00]} 12. O-O {[%emt 0:00:40]} O-O {[%emt 0:00:
05]} 13. Bh6 {[%emt 0:00:53]} Re8 {[%emt 0:00:03]} 14. Rb1 {[%emt 0:00:51]} Qa5
{[%emt 0:00:09]} 15. Bd2 {[%emt 0:03:16]} Qc7 {[%emt 0:00:00]} 16. Ne3 {
[%emt 0:00:03]} Nd4 {[%emt 0:01:29]} 17. Bc3 {[%emt 0:00:41]} Nxe2+ {[%emt 0:
00:33]} 18. Qxe2 {[%emt 0:00:00]} Be6 {[%emt 0:00:00]} 19. Rfc1 {[%emt 0:00:45]
} Rac8 {[%emt 0:00:26]} 20. Bd4 {[%emt 0:03:07]} b6 {[%emt 0:00:00]} 21. Qb2 {
[%emt 0:00:00]} Nd7 {[%emt 0:01:18]} 22. f4 {[%emt 0:01:07]} f6 {[%emt 0:00:00]
} 23. Qe2 {[%emt 0:00:38]} Nc5 {[%emt 0:01:33]} 24. f5 {[%emt 0:00:00]} Bf7 {
[%emt 0:00:00]} 25. Ng4 {[%emt 0:01:31]} Qc6 {[%emt 0:00:17]} 26. Re1 {[%emt 0:
02:02]} Nd7 {[%emt 0:00:00]} 27. Rbc1 {[%emt 0:00:00]} Bxc4 {[%emt 0:04:03]}
28. Qe3 {[%emt 0:00:00]} Qa4 {[%emt 0:00:29]} 29. Rc3 {[%emt 0:00:41]} Bf7 {
[%emt 0:00:00]} 30. Ra3 {[%emt 0:00:00]} Qb4 {[%emt 0:03:59]} 31. Rxa7 {
[%emt 0:00:00]} Ne5 {[%emt 0:00:00]} 32. Nxe5 {[%emt 0:00:00]} dxe5 {[%emt 0:
00:00]} 33. Bxb6 {[%emt 0:00:00]} gxf5 {[%emt 0:00:00]} 34. exf5 {[%emt 0:00:
00]} Rc2 {[%emt 0:00:00]} 35. Rc7 {[%emt 0:00:00]} Rxc7 {[%emt 0:00:24]} 36.
Bxc7 {[%emt 0:00:46]} Rc8 {[%emt 0:00:00]} 37. Rc1 {[%emt 0:00:29]} Qb2 {
[%emt 0:00:33]} 38. Qc5 {[%emt 0:00:15]} Qd2 {[%emt 0:00:58]} 39. a4 {[%emt 0:
00:02]} Bd5 {[%emt 0:00:16]} 40. Kf1 {[%emt 0:00:16]} Bxg2+ {[%emt 0:00:05]}
41. Kg1 {[%emt 0:00:03]} Bd5 {[%emt 0:00:07]} 42. Kf1 {[%emt 0:00:05]} Kf7 {
[%emt 0:00:12]} 43. Rc2 {[%emt 0:00:07]} Qd1+ {[%emt 0:00:12]} 44. Kf2 {
[%emt 0:00:00]} Rg8 {[%emt 0:00:10]} 45. Ke3 {[%emt 0:00:25]} Rg4 {[%emt 0:00:
09]} 46. Qc3 {[%emt 0:00:19]} Re4+ {[%emt 0:00:15]} 47. Kf2 {[%emt 0:00:03]}
Rf4+ {[%emt 0:00:00]} 0-1

[Event "RUS-ch Rapid 2021"]
[Site "Sochi"]
[Date "2021.10.13"]
[Round "9.21"]
[White "Sakaev, Konstantin"]
[Black "Gubsky, Egor"]
[Result "1-0"]
[ECO "E50"]
[WhiteElo "2603"]
[BlackElo "2339"]
[Annotator "RC"]
[PlyCount "71"]
[EventDate "2021.10.12"]
[EventType "swiss"]
[EventCountry "RUS"]
[SourceTitle "playchess.com"]
[Source "ChessBase"]
[SourceQuality "1"]
[TimeControl "900+10"]

1. d4 {[%emt 0:00:00]} Nf6 {[%emt 0:00:04]} 2. c4 {[%emt 0:00:11]} e6 {[%emt 0:
00:03]} 3. Nc3 {[%emt 0:00:00]} Bb4 {[%emt 0:00:00]} 4. e3 {[%emt 0:00:00]} O-O
{[%emt 0:00:04]} 5. Bd3 {[%emt 0:00:00]} c5 {[%emt 0:00:08]} 6. Nf3 {[%emt 0:
00:15]} Nc6 {[%emt 0:00:22]} 7. d5 {[%emt 0:01:48]} Bxc3+ {[%emt 0:00:31]} 8.
bxc3 {[%emt 0:00:05]} Ne7 {[%emt 0:00:19]} 9. e4 {[%emt 0:00:46]} d6 {[%emt 0:
00:07]} 10. Bg5 {[%emt 0:03:10]} Ne8 {[%emt 0:01:24]} 11. dxe6 {[%emt 0:00:45]}
Bxe6 {[%emt 0:00:07]} 12. Nd2 {[%emt 0:01:01]} h6 {[%emt 0:00:38]} 13. Bh4 {
[%emt 0:00:05]} Qd7 {[%emt 0:01:44]} 14. O-O {[%emt 0:01:10]} Ng6 {[%emt 0:00:
08]} 15. Bg3 {[%emt 0:00:00]} Nc7 {[%emt 0:01:21]} 16. Re1 {[%emt 0:02:03]}
Rad8 {[%emt 0:00:53]} 17. Nf1 {[%emt 0:00:30]} Ne5 {[%emt 0:06:50]} 18. Ne3 {
[%emt 0:00:00]} b5 {[%emt 0:00:06]} 19. cxb5 {[%emt 0:01:04]} Nxb5 {[%emt 0:01:
17]} 20. Qd2 {[%emt 0:00:25]} Qc6 {[%emt 0:00:25]} 21. Bf1 {[%emt 0:00:16]} c4
{[%emt 0:00:17]} 22. Nd5 {[%emt 0:01:06]} Qc5 {[%emt 0:00:24]} 23. Nf4 {
[%emt 0:01:43]} Rfe8 {[%emt 0:00:01]} 24. Nxe6 {[%emt 0:00:25]} Rxe6 {[%emt 0:
00:04]} 25. Rad1 {[%emt 0:00:13]} Qa3 {[%emt 0:01:04]} 26. Rc1 {[%emt 0:00:11]}
Rc8 {[%emt 0:00:03]} 27. h3 {[%emt 0:00:13]} Nd7 {[%emt 0:00:29]} 28. Re3 {
[%emt 0:00:20]} Nc5 {[%emt 0:00:07]} 29. Bxc4 {[%emt 0:01:05]} Nxe4 {[%emt 0:
00:24]} 30. Rxe4 {[%emt 0:00:03]} Rxe4 {[%emt 0:00:05]} 31. Bxb5 {[%emt 0:00:
00]} d5 {[%emt 0:00:08]} 32. Bd3 {[%emt 0:00:35]} Ra4 {[%emt 0:00:30]} 33. Bf5
{[%emt 0:00:13]} Rcc4 {[%emt 0:00:20]} 34. Re1 {[%emt 0:00:29]} Qf8 {[%emt 0:
00:11]} 35. Bd7 {[%emt 0:00:24]} d4 {[%emt 0:00:12]} 36. Bxa4 {[%emt 0:00:08]}
1-0

[Event "RUS-ch Rapid 2021"]
[Site "Sochi"]
[Date "2021.10.13"]
[Round "9.22"]
[White "Savchenko, Boris"]
[Black "Shcherbin, Matvei"]
[Result "1/2-1/2"]
[ECO "C00"]
[WhiteElo "2535"]
[BlackElo "2366"]
[Annotator "ChessBase"]
[PlyCount "112"]
[EventDate "2021.10.12"]
[EventType "swiss"]
[EventCountry "RUS"]
[SourceTitle "playchess.com"]
[Source "ChessBase"]
[SourceQuality "1"]
[TimeControl "900+10"]

1. e4 {[%emt 0:00:05]} c5 {[%emt 0:00:00]} 2. Nf3 {[%emt 0:00:03]} e6 {[%emt 0:
00:09]} 3. d3 {[%emt 0:00:03]} Nc6 {[%emt 0:00:12]} 4. g3 {[%emt 0:00:03]} g6 {
[%emt 0:00:21]} 5. Bg2 {[%emt 0:00:00]} Bg7 {[%emt 0:00:03]} 6. O-O {[%emt 0:
00:12]} Nge7 {[%emt 0:00:01]} 7. Qe2 {[%emt 0:00:00]} O-O {[%emt 0:00:09]} 8.
h4 {[%emt 0:00:07]} d5 {[%emt 0:00:18]} 9. e5 {[%emt 0:00:00]} f6 {[%emt 0:00:
08]} 10. exf6 {[%emt 0:00:08]} Bxf6 {[%emt 0:00:02]} 11. c4 {[%emt 0:01:06]}
Nf5 {[%emt 0:00:29]} 12. Nc3 {[%emt 0:00:01]} Ncd4 {[%emt 0:02:24]} 13. Qd1 {
[%emt 0:00:04]} Nxf3+ {[%emt 0:00:43]} 14. Bxf3 {[%emt 0:00:03]} Bxc3 {[%emt 0:
02:52]} 15. bxc3 {[%emt 0:00:01]} dxc4 {[%emt 0:00:10]} 16. dxc4 {[%emt 0:00:
03]} Qxd1 {[%emt 0:00:00]} 17. Rxd1 {[%emt 0:00:00]} Nxg3 {[%emt 0:00:29]} 18.
fxg3 {[%emt 0:00:03]} Rxf3 {[%emt 0:00:04]} 19. Bh6 {[%emt 0:00:00]} Rxg3+ {
[%emt 0:03:52]} 20. Kh2 {[%emt 0:00:01]} Rg4 {[%emt 0:00:52]} 21. Kh3 {[%emt 0:
00:02]} e5 {[%emt 0:01:08]} 22. Rd8+ {[%emt 0:00:09]} Kf7 {[%emt 0:00:00]} 23.
Rf8+ {[%emt 0:00:08]} Ke7 {[%emt 0:00:06]} 24. Rxc8 {[%emt 0:00:03]} Rxh4+ {
[%emt 0:00:00]} 25. Kxh4 {[%emt 0:00:02]} Rxc8 {[%emt 0:00:02]} 26. Bg7 {
[%emt 0:00:08]} Rd8 {[%emt 0:00:38]} 27. Bxe5 {[%emt 0:00:10]} Rd2 {[%emt 0:00:
00]} 28. Kg4 {[%emt 0:00:43]} Re2 {[%emt 0:00:40]} 29. Kf4 {[%emt 0:00:06]} Ke6
{[%emt 0:00:09]} 30. Bb8 {[%emt 0:00:00]} Rc2 {[%emt 0:00:05]} 31. Re1+ {
[%emt 0:00:41]} Kd7 {[%emt 0:00:19]} 32. Rd1+ {[%emt 0:01:16]} Kc8 {[%emt 0:00:
38]} 33. Bxa7 {[%emt 0:00:56]} Rxc3 {[%emt 0:00:02]} 34. Bxc5 {[%emt 0:00:00]}
Rxc4+ {[%emt 0:00:00]} 35. Bd4 {[%emt 0:00:07]} Kd7 {[%emt 0:01:18]} 36. Ke5 {
[%emt 0:00:59]} Ra4 {[%emt 0:00:12]} 37. Rd2 {[%emt 0:00:08]} Ra6 {[%emt 0:00:
32]} 38. Kd5 {[%emt 0:00:07]} Rd6+ {[%emt 0:00:06]} 39. Kc4 {[%emt 0:00:05]} h5
{[%emt 0:00:56]} 40. Rg2 {[%emt 0:00:11]} Ra6 {[%emt 0:00:22]} 41. Bc5 {
[%emt 0:00:10]} Re6 {[%emt 0:00:37]} 42. Kb5 {[%emt 0:00:07]} Rf6 {[%emt 0:00:
45]} 43. a4 {[%emt 0:00:04]} Re6 {[%emt 0:00:15]} 44. a5 {[%emt 0:00:02]} Rf6 {
[%emt 0:00:03]} 45. Rd2+ {[%emt 0:00:07]} Ke8 {[%emt 0:00:16]} 46. Rd6 {
[%emt 0:02:39]} Rxd6 {[%emt 0:00:11]} 47. Bxd6 {[%emt 0:00:00]} Kd7 {[%emt 0:
00:04]} 48. Bf4 {[%emt 0:00:04]} Kc8 {[%emt 0:00:16]} 49. Kb6 {[%emt 0:00:10]}
g5 {[%emt 0:00:00]} 50. Be5 {[%emt 0:00:19]} h4 {[%emt 0:00:04]} 51. Ka7 {
[%emt 0:00:00]} g4 {[%emt 0:00:09]} 52. Bb8 {[%emt 0:00:21]} g3 {[%emt 0:00:06]
} 53. Bf4 {[%emt 0:00:00]} g2 {[%emt 0:00:08]} 54. Bh2 {[%emt 0:00:00]} h3 {
[%emt 0:00:16]} 55. Ka8 {[%emt 0:00:07]} g1=Q {[%emt 0:00:08]} 56. Bxg1 {
[%emt 0:00:00]} Kc7 {[%emt 0:00:00]} 1/2-1/2

[Event "RUS-ch Rapid 2021"]
[Site "Sochi"]
[Date "2021.10.13"]
[Round "9.23"]
[White "Nazaretyan, Tigran"]
[Black "Potapov, Pavel"]
[Result "1/2-1/2"]
[ECO "A81"]
[WhiteElo "2316"]
[BlackElo "2481"]
[Annotator "ChessBase"]
[PlyCount "104"]
[EventDate "2021.10.12"]
[EventType "swiss"]
[EventCountry "RUS"]
[SourceTitle "playchess.com"]
[Source "ChessBase"]
[SourceQuality "1"]
[TimeControl "900+10"]

1. d4 {[%emt 0:00:57]} f5 {[%emt 0:00:04]} 2. Nf3 {[%emt 0:00:00]} Nf6 {
[%emt 0:00:01]} 3. g3 {[%emt 0:00:09]} g6 {[%emt 0:00:13]} 4. Bg2 {[%emt 0:00:
02]} Bg7 {[%emt 0:00:03]} 5. O-O {[%emt 0:00:02]} O-O {[%emt 0:00:00]} 6. c3 {
[%emt 0:00:00]} e6 {[%emt 0:00:05]} 7. a4 {[%emt 0:00:18]} Nc6 {[%emt 0:00:36]}
8. Nbd2 {[%emt 0:00:16]} d6 {[%emt 0:00:05]} 9. b4 {[%emt 0:00:17]} a6 {
[%emt 0:00:46]} 10. Ba3 {[%emt 0:00:21]} Qe7 {[%emt 0:00:33]} 11. Qc2 {[%emt 0:
00:32]} Bd7 {[%emt 0:02:52]} 12. b5 {[%emt 0:01:11]} Nd8 {[%emt 0:00:26]} 13.
c4 {[%emt 0:01:15]} Nf7 {[%emt 0:01:22]} 14. e4 {[%emt 0:00:59]} fxe4 {[%emt 0:
01:24]} 15. Nxe4 {[%emt 0:00:36]} Nxe4 {[%emt 0:02:06]} 16. Qxe4 {[%emt 0:00:
00]} Rab8 {[%emt 0:00:31]} 17. Rfe1 {[%emt 0:01:25]} Ng5 {[%emt 0:02:28]} 18.
Nxg5 {[%emt 0:00:45]} Qxg5 {[%emt 0:00:00]} 19. Rad1 {[%emt 0:00:53]} axb5 {
[%emt 0:01:10]} 20. axb5 {[%emt 0:00:36]} b6 {[%emt 0:00:11]} 21. f4 {[%emt 0:
00:36]} Qf6 {[%emt 0:01:41]} 22. Bb2 {[%emt 0:01:15]} Qf5 {[%emt 0:00:25]} 23.
Qxf5 {[%emt 0:00:29]} gxf5 {[%emt 0:00:05]} 24. Ra1 {[%emt 0:00:10]} Kf7 {
[%emt 0:00:35]} 25. Ra7 {[%emt 0:00:13]} Rfc8 {[%emt 0:00:08]} 26. Kf2 {
[%emt 0:00:55]} Bf6 {[%emt 0:00:17]} 27. Bf3 {[%emt 0:00:13]} Kg6 {[%emt 0:00:
14]} 28. Ke3 {[%emt 0:00:33]} d5 {[%emt 0:00:15]} 29. Kd3 {[%emt 0:00:38]} Ra8
{[%emt 0:00:21]} 30. Rea1 {[%emt 0:00:13]} Rxa7 {[%emt 0:00:00]} 31. Rxa7 {
[%emt 0:00:02]} Be7 {[%emt 0:00:20]} 32. Kc3 {[%emt 0:00:19]} Bd6 {[%emt 0:00:
10]} 33. Bc1 {[%emt 0:01:07]} h5 {[%emt 0:00:33]} 34. Be3 {[%emt 0:00:00]} dxc4
{[%emt 0:00:00]} 35. Kxc4 {[%emt 0:00:12]} Rh8 {[%emt 0:00:13]} 36. Bd2 {
[%emt 0:00:25]} h4 {[%emt 0:00:08]} 37. Bb4 {[%emt 0:00:03]} hxg3 {[%emt 0:00:
37]} 38. hxg3 {[%emt 0:00:19]} Be8 {[%emt 0:00:04]} 39. Ra8 {[%emt 0:00:26]}
Kg7 {[%emt 0:00:24]} 40. Bc3 {[%emt 0:00:16]} Kf7 {[%emt 0:00:05]} 41. d5 {
[%emt 0:00:06]} Rh3 {[%emt 0:00:08]} 42. dxe6+ {[%emt 0:00:06]} Ke7 {[%emt 0:
00:00]} 43. Be1 {[%emt 0:00:40]} Rh2 {[%emt 0:00:11]} 44. Bd5 {[%emt 0:01:00]}
Rc2+ {[%emt 0:00:19]} 45. Bc3 {[%emt 0:00:23]} Bxb5+ {[%emt 0:00:09]} 46. Kb3 {
[%emt 0:00:10]} Re2 {[%emt 0:00:12]} 47. Rg8 {[%emt 0:00:08]} c6 {[%emt 0:00:
05]} 48. Rg7+ {[%emt 0:00:03]} Ke8 {[%emt 0:00:01]} 49. Rg8+ {[%emt 0:01:00]}
Ke7 {[%emt 0:00:01]} 50. Rg7+ {[%emt 0:00:10]} Ke8 {[%emt 0:00:26]} 51. Rg8+ {
[%emt 0:00:16]} Ke7 {[%emt 0:00:02]} 52. Rg7+ {[%emt 0:00:05]} Kf8 {[%emt 0:00:
16]} 1/2-1/2